[Event "45th FIDE Olympiad 2024"]
[Site "Budapest"]
[Date "2024.09.19"]
[Round "8.108"]
[White "Kojima, Shinya"]
[Black "Kostolansky, Sebastian Lukas"]
[Result "0-1"]
[ECO "D35"]
[WhiteElo "2299"]
[BlackElo "2405"]
[Annotator "TA"]
[PlyCount "74"]
[EventDate "2024.09.05"]
[EventType "team-tourn"]
[EventCountry "HUN"]
[SourceTitle "playchess.com"]
[Source "ChessBase"]
[SourceQuality "1"]
[WhiteTeam "Japan"]
[BlackTeam "Slovakia"]
[WhiteTeamCountry "JPN"]
[BlackTeamCountry "SVK"]
[TimeControl "40/5400+30:1800+30"]

{[%evp 11,74,10,23,9,6,12,12,15,28,0,0,-13,0,0,0,0,0,-19,-24,-22,-26,-24,-20,-31,-20,-35,-35,-43,-44,-62,-46,-43,-37,-40,-22,-35,-20,-113,-118,-124,-119,-114,-111,-112,-112,-216,-221,-214,-218,-5110,-5110,-5381,-4794,-29988,-29989,-29989,-29990,-29990,-29991,-29991,-29992,-29992,-29993,-29993,-29994]} 1. d4 Nf6 2. c4 e6 3. Nf3 d5 4. Nc3 Nbd7 5. cxd5 exd5 6. Bf4 Bb4 7. Rc1 Ne4 8. Nd2 Nxd2 9. Qxd2 {With the idea a3. The position is equal.} Nf6 10. f3 O-O 11. a3 Be7 12. e3 c6 {Inhibits Nb5.} 13. Bd3 Nh5 14. Bg3 Nxg3 15. hxg3 h6 16. Kf2 Re8 17. Ne2 {[%cal Bc3e2,Be2f4,Bf4d3,Bd3e5][%mdl 32]} Bd6 18. Bb1 Qg5 19. Nf4 g6 {Inhibits Rh5.} 20. Rh4 Bf8 21. Nd3 Bf5 22. Ne5 Bxb1 23. Rxb1 c5 24. Qd3 (24. Rd1 $11 {keeps the balance.}) 24... cxd4 $17 25. exd4 {[#]} Rxe5 $1 26. dxe5 {Hoping for f4.} Bc5+ 27. Kf1 {f4 would now be deadly.} Qxg3 {[%csl Gc5][%cal Rg3f2]} (27... Qxe5 $6 28. Rxh6 (28. f4 Qf6 $18) 28... Qxg3 29. Qc2 $11) 28. Rd4 Bxd4 $19 (28... Qxe5 $2 29. Rxd5 Qe7 30. Qe4 $18) 29. Qxd4 {[%mdl 4096] Endgame. KQR-KQR} Rc8 $40 {[%mdl 128] White must now prevent ...Rc2. Black goes for the king.} 30. e6 $2 (30. Qg4 Qxg4 (30... Qxe5 $2 {is the wrong capture.} 31. Qxc8+ Kg7 32. Qc3 $18) 31. fxg4) 30... Rc2 ({Not} 30... fxe6 31. Qf6 Rc6 32. Qd8+ Kf7 33. Qd7+ Kf6 34. Re1 $17) 31. exf7+ Kf8 $1 32. Qh8+ Kxf7 {[%csl Gc2][%cal Rg3f2] Black mates.} 33. Qh7+ Kf6 {[%csl Gc2][%cal Rg3f2]} 34. Qh8+ Kg5 {[%csl Gc2][%cal Rg3f2]} 35. Qd8+ Kh5 {[%csl Gc2][%cal Rg3f2]} 36. Qxd5+ {[#]} g5 $1 {[%csl Gc2][%cal Rg3f2]} ({Weaker is} 36... Qg5 37. Qxg5+ Kxg5 38. b4 $11) 37. Qf7+ Kh4 {Weighted Error Value: White=0.70/Black=0.02 (flawless) .  Mistake:       	White=3     	---        Inaccurate:     	White=1     	---        OK:         	White=5     	Black=10     Best:        	---       	Black=6      Strong:       	---       	Black=1} 0-1

[Event "45th FIDE Olympiad 2024"]
[Site "Budapest"]
[Date "2024.09.19"]
[Round "8.109"]
[White "Zhakshylykov, Erzhan"]
[Black "Garcia Pantoja, Roberto"]
[Result "1/2-1/2"]
[ECO "E43"]
[WhiteElo "2327"]
[BlackElo "2550"]
[Annotator "TA"]
[PlyCount "144"]
[EventDate "2024.09.05"]
[EventType "team-tourn"]
[EventCountry "HUN"]
[SourceTitle "playchess.com"]
[Source "ChessBase"]
[SourceQuality "1"]
[WhiteTeam "Kyrgyzstan"]
[BlackTeam "Colombia"]
[WhiteTeamCountry "KGZ"]
[BlackTeamCountry "COL"]
[TimeControl "40/5400+30:1800+30"]

{[%evp 19,144,3,1,0,0,0,0,0,0,0,0,0,0,0,0,0,0,0,0,0,0,0,0,0,0,0,25,24,18,21,25,24,27,23,29,11,13,24,35,14,11,10,4,0,0,-52,-50,-66,-56,-64,-54,-80,-76,-94,-98,-105,-105,-99,-58,-92,-93,-92,-84,-91,-59,-62,-62,-152,-151,-598,-518,-157,-156,-1816,-1786,-1815,-823,-1777,-5513,-5431,-462,-6420,-5009,-29943,-12802,-12795,-10570,-7253,-5518,-6440,-751,-6424,-5114,-5065,-55,-55,-22,-55,-55,-55,-55,-55,-55,-55,-55,-55,-55,-129,-129,-129,-129,-129,-129,-129,-129,-129,-129,-129,-129,-129,-129,-129,0,-129,0,-129,0]} 1. d4 Nf6 2. c4 e6 3. Nc3 Bb4 4. Nf3 b6 5. e3 O-O 6. Bd3 Bb7 7. O-O c5 8. Na4 cxd4 9. exd4 Re8 10. a3 Bf8 11. b4 a5 12. Bg5 axb4 13. axb4 {The position is equal.} h6 14. Bxf6 Qxf6 15. b5 d6 16. Nxb6 Rxa1 17. Qxa1 Bxf3 18. gxf3 Qxf3 19. Qd1 Qb7 20. Na4 Nd7 21. Re1 Rc8 22. Qb3 Nb6 23. Be4 Qa7 {Black is weak on the light squares} ({Reject} 23... d5 24. Nxb6 Qxb6 25. cxd5 exd5 26. Bxd5 Qxd4 27. Bxf7+ Kh8 28. Qf3 $16) 24. Nxb6 Qxb6 25. Qd3 Qa5 26. Rb1 Rb8 27. Bc6 Be7 28. Kg2 Qa7 29. Rb3 Bf6 30. d5 {dxe6 is the strong threat.} e5 31. Ra3 Qc5 32. Ra4 (32. Qe3 $11 Qxc4 33. Qa7 Qe4+ 34. Kg1 Qb1+ 35. Kg2 Qg6+ 36. Kh1 Qe4+ 37. Kg1 Qb1+ 38. Kg2 Qg6+ 39. Kh1) 32... Bd8 $1 $15 33. Qe3 Bb6 34. Qxc5 Bxc5 {[%mdl 4096] Endgame. KRB-KRB} 35. f3 Kf8 36. Kf1 Ke7 37. Ke2 Kf6 38. Bd7 Rb7 39. Bc6 Ra7 40. Ra6 Kg5 41. Be8 Rxa6 42. bxa6 $17 {KB-KB} f5 43. Kd3 (43. Bf7 $15) 43... Kf4 44. Bg6 $2 (44. Bh5 $17 {is more resistant.}) 44... Kxf3 $19 {aiming for ...e4+.} 45. Bxf5 g5 $1 46. h3 $2 (46. Be4+ $17 Kf4 47. Bg6) 46... h5 47. Bg6 {[#]} Kg3 $1 48. Bxh5 Kxh3 {( -> ...g4)} 49. Bg6 g4 50. Bf5 {[#]} Kg3 $1 {Threatens to win with ...Kf3.} 51. Ke2 Kf4 52. Be6 Bb6 53. Bd7 Ba7 {And now ...Bb6 would win.} 54. Be6 e4 (54... Bc5 $142 55. Bf7 g3) 55. Bd7 Bb6 {Hoping for ...Bc5.} 56. Be6 g3 $2 (56... Bc5 $19 {White must now prevent ...Kg5.} 57. Bd7 Kg3) 57. Bh3 $15 Ke5 58. Bg2 Kd4 59. Bh1 e3 (59... Kxc4 60. Bxe4 Kd4 61. Bg2 $11) 60. Bg2 Kxc4 61. Bh1 Kb5 62. Bg2 Kxa6 63. Bh1 (63. Kf3 $15) 63... Kb5 $17 64. Bg2 Kc4 65. Bh1 Kd4 66. Bg2 Ke5 67. Bh1 Kf4 68. Bg2 Kg4 69. Bf1 Bc5 70. Bg2 Bb6 71. Bf1 $1 Bc5 72. Bg2 Bb6 {And White is the lucky defender.   Weighted Error Value: White=0.71/Black=0.44.  Loses game:     	White=2     	---        Mistake:       	White=3     	Black=1      Inaccurate:     	White=4     	Black=2      OK:         	White=20    	Black=22     Best:        	White=3     	Black=3      Strong:       	White=1     	Black=2} (72... Kf4 $17) 1/2-1/2

[Event "45th FIDE Olympiad 2024"]
[Site "Budapest"]
[Date "2024.09.19"]
[Round "8.109"]
[White "Kudakwashe, Chinake"]
[Black "Yacouba, Souley Moussa"]
[Result "1-0"]
[WhiteElo "1859"]
[BlackElo "1645"]
[PlyCount "93"]
[EventDate "2024.09.05"]
[EventType "team-tourn"]
[EventCountry "HUN"]
[WhiteTeam "Cayman Islands"]
[BlackTeam "Niger"]
[WhiteTeamCountry "CAY"]
[BlackTeamCountry "NIG"]
[TimeControl "40/5400+30:1800+30"]

1. d4 Nf6 2. Nc3 c5 3. d5 d6 4. e4 e5 5. f4 Nbd7 6. Nf3 h6 7. fxe5 Nxe5 8. Nxe5 dxe5 9. Be2 a6 10. a4 Bd6 11. O-O O-O 12. Qd3 Bg4 13. Bxg4 Nxg4 14. Qg3 h5 15. h3 Qd7 16. hxg4 hxg4 17. Rf5 f6 18. Qxg4 Rf7 19. Qg6 Kf8 20. Be3 Qc7 21. Rh5 Ke7 22. Rh7 Rg8 23. Rf1 Kd8 24. a5 Rff8 25. b4 Kc8 26. Na4 cxb4 27. Qf5+ Kb8 28. Nb6 Rf7 29. Qf2 Qc3 30. Rh3 Rc7 31. Nd7+ Kc8 32. Nb6+ Kb8 33. Rc1 Qa3 34. Nc4 Qxc1+ 35. Bxc1 Rxc4 36. Be3 Rgc8 37. Qf5 Rxc2 38. Qd7 Bc5 39. Bxc5 R2xc5 40. Rb3 Rc1+ 41. Kh2 Rh8+ 42. Rh3 Rxh3+ 43. Kxh3 b3 44. Qd8+ Rc8 45. Qb6 Rc3+ 46. Kg4 Re3 47. Qxe3 1-0

[Event "45th FIDE Olympiad 2024"]
[Site "Budapest"]
[Date "2024.09.19"]
[Round "8.110"]
[White "Cardoso Cardoso, Jose Gabriel"]
[Black "Orozbaev, Eldiyar"]
[Result "0-1"]
[ECO "B66"]
[WhiteElo "2508"]
[BlackElo "2376"]
[Annotator "TA"]
[PlyCount "124"]
[EventDate "2024.09.05"]
[EventType "team-tourn"]
[EventCountry "HUN"]
[SourceTitle "playchess.com"]
[Source "ChessBase"]
[SourceQuality "1"]
[WhiteTeam "Colombia"]
[BlackTeam "Kyrgyzstan"]
[WhiteTeamCountry "COL"]
[BlackTeamCountry "KGZ"]
[TimeControl "40/5400+30:1800+30"]

{[%evp 52,124,-439,-387,-307,-330,-314,-781,-250,-250,-259,-243,-254,-281,-271,-287,-260,-278,-266,-298,-219,-283,-298,-310,-286,-347,-344,-359,-353,-350,-323,-404,-404,-548,-538,-679,-268,-248,0,-286,-289,-605,-343,-491,-595,-653,-482,-651,-641,-518,-272,-29965,-29966,-29968,-29969,-29969,-29970,-5724,-861,-854,-854,-847,-845,-832,-825,-817,-802,-800,-789,-719,-682,-1007,-984,-1026,-878]} 1. e4 c5 2. Nf3 d6 3. d4 cxd4 4. Nxd4 Nf6 5. Nc3 Nc6 6. Bg5 e6 7. Qd2 a6 8. O-O-O Be7 9. Bxf6 gxf6 {B66: Sicilian: Richter-Rauzer: 7...a6 8 0-0-0 h6.} 10. f4 Bd7 11. Be2 Qb6 12. Nb3 Qc7 13. Bh5 b5 14. Rhe1 $146 ({Predecessor:} 14. f5 b4 15. fxe6 Bxe6 16. Nd5 Bxd5 17. Qxd5 O-O 18. Rd3 Rac8 19. Rg3+ Kh8 20. Qd2 {1-0 Hommadov,A (2070)-Coelho,R (1981) Titled Tuesday intern op 26th Sep Late blitz 2023 (1)}) 14... b4 15. Nd5 exd5 16. exd5 Ne5 17. fxe5 fxe5 18. Rf1 O-O 19. Qh6 Rac8 20. Rd2 Qc4 21. Rf3 Kh8 22. g4 Qe4 23. Rf1 Rg8 24. h4 Bxg4 25. Na5 Bf8 26. Qf6+ Bg7 27. Qg5 Bxh5 28. Qxh5 {[#]} Qe3 $1 29. Rf3 $2 (29. Rfd1) 29... Qe1+ $2 (29... Qc5 {( -> ...Bh6)} 30. Nc6 e4 31. Rxf7 Rxc6) 30. Rd1 $19 Qe2 31. Nc6 Bh6+ 32. Qxh6 Qxf3 33. Ne7 Qf2 34. Nxc8 Rxc8 35. Rd2 Qg1+ 36. Rd1 Qg6 37. Qd2 Rc4 38. Qf2 Rg4 39. Qb6 Rg2 (39... Rxh4 $2 40. Qd8+ (40. Qxa6 $2 h5 $19) 40... Kg7 41. Qxh4 $18) 40. Qc6 Kg7 41. Rf1 a5 42. b3 h5 43. Kb2 Rg3 $2 (43... Qd3 44. Rxf7+ Kxf7 45. Qd7+ Kf8 46. Qd8+ Kf7 47. Qd7+ Kf8 48. Qd8+ Kg7 49. Qe7+ Kg8 50. Qe8+ Kg7 51. Qe7+ Kg8 52. Qe8+ Kg7 53. Qe7+ $11) (43... e4 {...e3 is the strong threat.} 44. a3 e3 (44... bxa3+ 45. Kxa3 Rg1 46. Rf2 $17) 45. axb4 axb4) 44. Qb6 $19 Rg2 $2 (44... Rg4 $19 45. a4 bxa3+ (45... Rxh4 46. Qxa5 Rd4 47. Qb6 $11) 46. Kxa3 Rxh4 (46... Qxc2 47. Qxd6 Rg6 48. Qxe5+ f6 49. Qe7+ Kg8 50. Re1 $16)) 45. Rc1 $2 {[%mdl 8192]} (45. Qc6 $1 $11 {and White stays safe.} e4 (45... Qd3 46. Rxf7+ Kxf7 47. Qd7+ Kf8 48. Qd8+ Kg7 49. Qe7+ Kg6 50. Qe6+ Kg7 51. Qe7+ Kh8 52. Qf6+ Kh7 53. Qf7+ Kh6 54. Qf8+ Kh7 55. Qf7+ Kh6 56. Qf8+ Kg6 57. Qg8+ Kh6 58. Qf8+ $11) 46. a3) 45... Qf6 $19 46. Qxa5 $2 (46. a4) 46... e4+ $19 47. Kb1 Qd4 (47... Qxh4 48. Qxb4 Qe7 (48... Qf4 49. a4 $16) 49. a4 $16) 48. a3 e3 (48... bxa3 $2 49. Qxa3 Qxd5 50. b4 $19) 49. Qxb4 Qxb4 (49... Qxd5 50. Re1 Rg3 51. Ka2 $19) 50. axb4 e2 51. Re1 $2 {[#]} (51. Kb2 $19 f5 52. b5) 51... f5 $1 52. Kc1 f4 53. Kd2 f3 54. Ra1 Rf2 (54... e1=B+ $142 55. Kxe1 Rg1+ (55... Rxc2 56. b5 $14) 56. Kf2 Rxa1 57. Kxf3 Rc1) 55. b5 Rf1 56. Re1 f2 57. Rxe2 Rd1+ $1 58. Kxd1 f1=Q+ ({Weaker is} 58... f1=B 59. b6 Bxe2+ 60. Kxe2 Kg8 61. b7 Kf8 62. b8=Q+ (62. b8=B Ke7 63. c4 Kd7 64. b4 Ke7 65. c5 dxc5 66. bxc5 Ke8) 62... Ke7 63. Qc7+ Kf6 64. Qxd6+ Kg7 65. Qe6) 59. Kd2 Qf4+ 60. Kd3 Qxh4 61. Re4 Qf2 62. b4 Qf1+ 0-1

[Event "45th FIDE Olympiad 2024"]
[Site "Budapest"]
[Date "2024.09.19"]
[Round "8.111"]
[White "Abdyzhapar, Asylbek"]
[Black "Avila Pavas, Santiago"]
[Result "1/2-1/2"]
[ECO "B61"]
[WhiteElo "2357"]
[BlackElo "2485"]
[Annotator "RC"]
[PlyCount "106"]
[EventDate "2024.09.05"]
[EventType "team-tourn"]
[EventCountry "HUN"]
[SourceTitle "playchess.com"]
[Source "ChessBase"]
[SourceQuality "1"]
[WhiteTeam "Kyrgyzstan"]
[BlackTeam "Colombia"]
[WhiteTeamCountry "KGZ"]
[BlackTeamCountry "COL"]
[TimeControl "40/5400+30:1800+30"]

1. e4 c5 2. Nf3 d6 3. d4 cxd4 4. Nxd4 Nf6 5. Nc3 Nc6 6. Bg5 Bd7 7. Qd2 Rc8 8. O-O-O Nxd4 9. Qxd4 Qa5 10. Be3 a6 11. f3 g6 12. Kb1 Bg7 13. Qd2 Be6 14. a3 h5 15. Bd4 Qc7 16. h4 b5 17. Bd3 Kf8 18. Rhe1 Qb8 19. Ne2 Nd7 20. Bxg7+ Kxg7 21. Nf4 Nc5 22. Qe3 Bc4 23. Nd5 Bxd5 24. exd5 Rc7 25. Qd4+ f6 26. c3 Nxd3 27. Qxd3 Qa7 28. Re6 Kf7 29. Rde1 a5 30. R1e4 b4 31. cxb4 axb4 32. Rxb4 Qg1+ 33. Ka2 Qxg2 34. Re2 Qg1 35. Qd2 Qg3 36. Rf4 Rb8 37. Qd4 Kg8 38. Qe3 Kg7 39. Qd2 Qh3 40. Qe1 Rbb7 41. Qg1 Qc8 42. Rg2 Rc2 43. Rxg6+ Kh7 44. Rb4 Rxb4 45. axb4 Rc7 46. Rg7+ Kh8 47. Rg6 Kh7 48. Rg7+ Kh8 49. Rg6 Qa6+ 50. Kb1 Qd3+ 51. Ka1 Qa6+ 52. Kb1 Qd3+ 53. Ka1 Qa6+ 1/2-1/2

[Event "45th FIDE Olympiad 2024"]
[Site "Budapest"]
[Date "2024.09.19"]
[Round "8.112"]
[White "Valderrama Quiceno, Esteban Alb"]
[Black "Sezdbekov, Ruslan"]
[Result "1/2-1/2"]
[ECO "A27"]
[WhiteElo "2418"]
[BlackElo "2251"]
[Annotator "TA"]
[PlyCount "82"]
[EventDate "2024.09.05"]
[EventType "team-tourn"]
[EventCountry "HUN"]
[SourceTitle "playchess.com"]
[Source "ChessBase"]
[SourceQuality "1"]
[WhiteTeam "Colombia"]
[BlackTeam "Kyrgyzstan"]
[WhiteTeamCountry "COL"]
[BlackTeamCountry "KGZ"]
[TimeControl "40/5400+30:1800+30"]

{[%evp 9,82,49,34,35,65,56,96,30,33,22,20,28,33,40,30,8,14,10,11,11,79,65,64,70,64,69,52,75,79,79,113,115,106,115,182,181,167,131,143,133,148,120,126,114,163,153,157,157,181,122,116,37,35,0,0,0,0,0,0,0,0,0,0,0,0,0,0,0,0,0,0,0,0,0,0]} 1. c4 e5 {[%cal Be7e5,Be5e4][%mdl 32]} 2. Nc3 Nc6 3. g3 f5 4. Nf3 Nf6 5. d4 e4 6. Nh4 {[%cal Bf3h4,Bh4g2,Bg2f4][%mdl 32]} d5 7. Bg5 $1 Bb4 8. e3 (8. cxd5 $16 Qxd5 9. Bxf6 gxf6 10. e3) 8... O-O $11 9. Ng2 Ne7 10. Qb3 Bxc3+ 11. bxc3 c6 12. Nf4 h6 13. Bxf6 Rxf6 14. h4 {[%cal Bh2h4,Bh4h5][%mdl 32]} Qa5 (14... g5 $11 {keeps the balance.} 15. Nh5 Rg6) 15. h5 $16 Kh7 16. Be2 {[%cal Bf1e2,Be2c4,Bc4b3][%mdl 32]} b6 {[%cal Bb7b6,Bb6b5][%mdl 32]} 17. Qb4 Qxb4 18. cxb4 dxc4 19. Bxc4 b5 20. Bb3 a5 21. bxa5 g5 (21... Rxa5 $16 22. O-O Rd6) 22. hxg6+ $18 Nxg6 23. Rc1 Nxf4 24. gxf4 Rxa5 25. Rc5 Ra7 26. Kd2 Rg7 (26... Rg6 $16 27. Kc3 Rag7) 27. Rh2 Bd7 28. Re5 {White is more active.} b4 29. Rc5 ({White should try} 29. Kc2 $18) 29... Be8 $16 30. Ke2 (30. Ra5 $16) 30... Bf7 $1 $14 31. Rh1 Bxb3 {The position is equal.} 32. axb3 $11 {[%mdl 4096] Endgame. KRR-KRR} Ra7 33. Rhc1 Ra3 34. Rxc6 Rxc6 35. Rxc6 {KR-KR} Kg7 {Against Rf6} 36. Kf1 Rxb3 37. Kg2 Rb1 38. Rc7+ Kf6 39. Rc6+ Kg7 40. Rc7+ Kf6 41. Rc6+ Kg7 {Blacks defense is rewarded with a draw.   Weighted Error Value: White=0.12 (very precise) /Black=0.11 (very precise) .  Mistake:       	White=3     	Black=3      Inaccurate:     	White=1     	Black=3      OK:         	White=10    	Black=17     Best:        	White=3     	Black=1      Strong:       	White=1     	Black=1} 1/2-1/2

[Event "45th FIDE Olympiad 2024"]
[Site "Budapest"]
[Date "2024.09.19"]
[Round "8.113"]
[White "Atabayev, Saparmyrat"]
[Black "Stefansson, Vignir Vatnar"]
[Result "1-0"]
[ECO "B63"]
[WhiteElo "2516"]
[BlackElo "2531"]
[Annotator "TA"]
[PlyCount "71"]
[EventDate "2024.09.05"]
[EventType "team-tourn"]
[EventCountry "HUN"]
[SourceTitle "playchess.com"]
[Source "ChessBase"]
[SourceQuality "1"]
[WhiteTeam "Turkmenistan"]
[BlackTeam "Iceland"]
[WhiteTeamCountry "TKM"]
[BlackTeamCountry "ISL"]
[TimeControl "40/5400+30:1800+30"]

{[%evp 20,71,16,11,22,-17,-20,-27,46,-1,0,0,36,0,0,-8,40,18,30,53,35,45,49,48,47,16,22,24,61,58,59,66,67,66,88,91,129,130,144,133,145,140,184,129,184,187,236,76,124,117,183,183,210,216]} 1. e4 c5 2. Nf3 d6 3. d4 cxd4 4. Nxd4 Nf6 5. Nc3 Nc6 6. Bg5 e6 7. Qd2 a6 8. O-O-O Be7 9. f3 O-O 10. h4 Nxd4 11. Qxd4 b5 12. e5 dxe5 13. Qxe5 Bd7 (13... Qb6 $11) 14. Bd3 (14. Ne4 $14) 14... Rc8 15. g4 Rc5 16. Qd4 {Bxf6 is the strong threat.} Rc8 17. Qe5 Kh8 (17... Qc7 $11 18. Qxc7 Rxc7) 18. Rhe1 Qc7 19. Qxc7 Rxc7 20. Bf4 Rcc8 21. g5 Nh5 22. Bh2 {[%cal Od3h7]} Bb4 23. Be4 $36 {[%mdl 2048] White has the initiative.} Bxc3 24. bxc3 {[%cal Bb2c3,Bc3c4][%mdl 32]} Bc6 25. Kb2 Bxe4 26. Rxe4 Rc6 {[#]} 27. c4 $1 {White is more active.} h6 (27... Ra8 28. cxb5) 28. Rd6 $1 Rc5 29. Rxa6 {aiming for Bd6.} Rfc8 30. Ra5 f5 31. Rxe6 ({Better is} 31. Rd4 $18 Kh7 32. gxh6 (32. Rxb5 Rxc4 33. Rxc4 Rxc4 $18)) 31... Rxc4 (31... hxg5 $16 32. Be5 (32. Rxb5 Rxc4 33. Re2 gxh4 $11) 32... Nf4) 32. Be5 $18 (32. gxh6 $2 Rxc2+ 33. Kb3 Rxh2 $19) 32... Nf4 (32... Kg8 $142) 33. Bxf4 $2 (33. Rxh6+ $18 Kg8 34. Ra7 gxh6 35. gxh6 Nd3+ (35... Rxc2+ $2 {perishes.} 36. Kb3 $18) (35... Kf8 $2 36. h7 $18) 36. cxd3 Rb4+ 37. Ka3 Ra4+ 38. Rxa4 bxa4 39. Kxa4) 33... Rxf4 ({Black should play} 33... Rb4+ 34. Kc1 Rxf4) 34. Rxb5 $16 Rxh4 {[#]} (34... Rfc4 $16) 35. g6 $1 $18 ({Stronger than} 35. Rxf5 Rh2 $11) 35... Rhc4 {[#]} 36. Rbe5 $1 {Weighted Error Value: White=0.19 (very precise) /Black=0.28 (precise) .  Mistake:       	White=3     	Black=6      Inaccurate:     	White=3     	Black=4      OK:         	White=6     	Black=7      Best:        	White=3     	---        Strong:       	White=3     	---} (36. Rxf5 Rxc2+ 37. Kb3 Kg8 $16) 1-0

[Event "45th FIDE Olympiad 2024"]
[Site "Budapest"]
[Date "2024.09.19"]
[Round "8.114"]
[White "Kjartansson, Gudmundur"]
[Black "Annaberdiyev, Meylis"]
[Result "0-1"]
[ECO "C65"]
[WhiteElo "2478"]
[BlackElo "2431"]
[Annotator "TA"]
[PlyCount "90"]
[EventDate "2024.09.05"]
[EventType "team-tourn"]
[EventCountry "HUN"]
[SourceTitle "playchess.com"]
[Source "ChessBase"]
[SourceQuality "1"]
[WhiteTeam "Iceland"]
[BlackTeam "Turkmenistan"]
[WhiteTeamCountry "ISL"]
[BlackTeamCountry "TKM"]
[TimeControl "40/5400+30:1800+30"]

{[%evp 13,90,18,16,-3,-5,-36,-43,-29,-12,-34,-23,-28,-17,-31,-32,-38,-48,-39,-37,-50,-45,-46,0,0,0,-12,-13,-25,-11,-24,-22,-55,0,-80,-78,-93,-98,-101,-103,-97,-106,-99,-100,-100,-95,-95,-103,-98,-97,-104,-103,-102,-93,-98,-100,-110,-108,-100,-108,-121,-63,-60,-41,-52,0,-93,-42,-432,-428,-590,-491,-29966,-29969,-29957,-29958,-4134,-1437,-29994,-29995]} 1. e4 e5 2. Nf3 Nc6 3. Bb5 Bc5 4. c3 Nf6 5. d3 O-O 6. O-O d6 7. Nbd2 Bb6 8. a4 {Black must now prevent Bxc6.} Ne7 9. h3 c6 10. Bc4 {Black is slightly better.} Ng6 11. Bb3 Re8 12. Re1 h6 13. Nf1 d5 14. Ng3 Bc7 15. Bc2 Be6 16. d4 dxe4 17. Nxe5 Bxe5 (17... Nxe5 $15 18. dxe5 Nd7) 18. dxe5 $11 Qxd1 19. Bxd1 Nxe5 20. Nxe4 Nxe4 21. Rxe4 Bf5 22. Re2 Nc4 ({Better is} 22... Rad8 $15 23. Be3 Nc4) 23. b3 (23. f3 $11) 23... Bd3 $17 24. Rxe8+ Rxe8 25. Kh2 (25. Bf4 $2 Re1+ 26. Kh2 Nb2 $19) 25... Re1 $1 26. bxc4 Rxd1 {[%mdl 4096] Endgame. KRB-KRB. Black has more active pieces.} 27. a5 Bxc4 28. f3 Bd5 29. Kg3 g5 30. h4 f5 31. hxg5 hxg5 32. Bb2 f4+ 33. Kh3 Rd2 34. Ba3 Be6+ 35. Kh2 g4 36. fxg4 {[#]} Bd5 (36... Bxg4 37. Kg1 $15) (36... f3 $1 $17 37. Kg3 fxg2 (37... Rxg2+ 38. Kxf3 Rxg4 39. Bc5 $11)) 37. Bc5 {[%cal Oh2h3]} a6 38. Kh3 Kf7 ({Reject} 38... Bxg2+ 39. Kh4 $11) (38... Rxg2 $15 39. Bd4 Rg3+ 40. Kh4 c5 41. Bxc5 Be6 (41... Rxc3 42. Bb6 $11)) 39. g3 (39. Ra4 $11 {remains equal.}) 39... f3 (39... Rd3 $17 40. Ra4 fxg3 (40... Rxc3 41. Rxf4+ Kg6 42. Be7 $11) (40... Rxg3+ 41. Kh4 $15) 41. Rf4+ Kg6) 40. Rh1 $2 {[%mdl 8192] This move loses the game for White.} (40. Ra4 $1 $15) 40... Bc4 $19 41. Rb1 f2 42. Rxb7+ {[#]} (42. Bxf2 $19 Rxf2 43. Rb4 Bf1+ 44. Kh4) 42... Kg6 43. Bxf2 Rxf2 44. g5 Kxg5 {[%cal Rc4f1]} 45. Rg7+ Kf5 {Weighted Error Value: White=0.61/Black=0.13 (very precise) .  Loses game:     	White=1     	---        Mistake:       	White=3     	Black=5      Inaccurate:     	White=3     	---        OK:         	White=13    	Black=14     Best:        	White=2     	Black=2      Strong:       	---       	Black=1} 0-1

[Event "45th FIDE Olympiad 2024"]
[Site "Budapest"]
[Date "2024.09.19"]
[Round "8.115"]
[White "Hommadov, Amanmuhammet"]
[Black "Stefansson, Hannes"]
[Result "0-1"]
[ECO "C78"]
[WhiteElo "2181"]
[BlackElo "2471"]
[Annotator "RC"]
[PlyCount "48"]
[EventDate "2024.09.05"]
[EventType "team-tourn"]
[EventCountry "HUN"]
[SourceTitle "playchess.com"]
[Source "ChessBase"]
[SourceQuality "1"]
[WhiteTeam "Turkmenistan"]
[BlackTeam "Iceland"]
[WhiteTeamCountry "TKM"]
[BlackTeamCountry "ISL"]
[TimeControl "40/5400+30:1800+30"]

1. e4 e5 2. Nf3 Nc6 3. Bb5 a6 4. Ba4 Nf6 5. O-O Bc5 6. Nxe5 Nxe5 7. d4 b5 8. Bb3 Bxd4 9. Qxd4 d6 10. c3 c5 11. Qd1 O-O 12. Re1 Bb7 13. Bc2 Re8 14. Bf4 d5 15. exd5 Qxd5 16. f3 Nxf3+ 17. gxf3 Rxe1+ 18. Qxe1 Qxf3 19. Qg3 Qh1+ 20. Kf2 Re8 21. Be3 h5 22. Bf5 Be4 23. Bh6 g6 24. Nd2 Qxa1 0-1